[Event "Titled Tuesday Blitz August 08 Early 2023"]
[White "Mahdavi, Reza"]
[Black "Vivas Zamora, Fabian Ernesto"]
[WhiteFideId "12595926"]
[BlackFideId "3902480"]
[WhiteElo "2754"]
[BlackElo "2480"]
[Result "1-0"]
[Round "3"]
[TimeControl "180+1"]
[Date "2023.08.08"]
[WhiteClock "0:00:26"]
[BlackClock "0:00:01"]
[Board "100"]

1. Nf3 {[%clk 0:03:00]}  Nf6 {[%clk 0:02:57]} 2. g3 {[%clk 0:02:59]}  g6 {[%clk 0:02:56]} 3. b3 {[%clk 0:02:30]}  Bg7 {[%clk 0:02:53]} 4. Bb2 {[%clk 0:02:31]}  O-O {[%clk 0:02:52]} 5. Bg2 {[%clk 0:02:31]}  d5 {[%clk 0:02:49]} 6. c4 {[%clk 0:02:15]}  Nc6 {[%clk 0:02:48]} 7. cxd5 {[%clk 0:02:14]}  Nxd5 {[%clk 0:02:48]} 8. Bxg7 {[%clk 0:02:15]}  Kxg7 {[%clk 0:02:48]} 9. O-O {[%clk 0:02:15]}  e5 {[%clk 0:02:45]} 10. Qc1 {[%clk 0:01:52]}  e4 {[%clk 0:02:09]} 11. Qb2+ {[%clk 0:01:34]}  Qf6 {[%clk 0:02:07]} 12. Qxf6+ {[%clk 0:01:16]}  Kxf6 {[%clk 0:01:46]} 13. Ne1 {[%clk 0:01:17]}  Nd4 {[%clk 0:01:37]} 14. Bxe4 {[%clk 0:00:56]}  Nxe2+ {[%clk 0:01:37]} 15. Kg2 {[%clk 0:00:56]}  Rd8 {[%clk 0:01:11]} 16. Nc2 {[%clk 0:00:52]}  Ne7 {[%clk 0:00:42]} 17. Re1 {[%clk 0:00:35]}  Nd4 {[%clk 0:00:41]} 18. Nxd4 {[%clk 0:00:29]}  Rxd4 {[%clk 0:00:42]} 19. Nc3 {[%clk 0:00:30]}  Rxd2 {[%clk 0:00:36]} 20. Nb5 {[%clk 0:00:27]}  c6 {[%clk 0:00:29]} 21. Nc7 {[%clk 0:00:27]}  Rb8 {[%clk 0:00:29]} 22. Ne8+ {[%clk 0:00:28]}  Kg5 {[%clk 0:00:24]} 23. Bf3 {[%clk 0:00:23]}  Bh3+ {[%clk 0:00:12]} 24. Kxh3 {[%clk 0:00:22]}  Rxe8 {[%clk 0:00:13]} 25. Re3 {[%clk 0:00:22]}  Rxf2 {[%clk 0:00:09]} 26. Rae1 {[%clk 0:00:17]}  Kf6 {[%clk 0:00:08]} 27. Bg4 {[%clk 0:00:18]}  h5 {[%clk 0:00:08]} 28. Bd7 {[%clk 0:00:18]}  Rd8 {[%clk 0:00:03]} 29. Rxe7 {[%clk 0:00:18]}  Rxa2 {[%clk 0:00:02]} 30. Be8 {[%clk 0:00:19]}  Rdd2 {[%clk 0:00:02]} 31. Rxf7+ {[%clk 0:00:19]}  Kg5 {[%clk 0:00:03]} 32. Rh1 {[%clk 0:00:18]}  Rdb2 {[%clk 0:00:02]} 33. Rg7 {[%clk 0:00:18]}  Rxb3 {[%clk 0:00:02]} 34. Rxg6+ {[%clk 0:00:19]}  Kf5 {[%clk 0:00:02]} 35. Rf1+ {[%clk 0:00:18]}  Ke5 {[%clk 0:00:01]} 36. Bf7 {[%clk 0:00:19]}  Rbb2 {[%clk 0:00:01]} 37. Bxa2 {[%clk 0:00:20]}  Rxa2 {[%clk 0:00:02]} 38. Rg5+ {[%clk 0:00:20]}  Kd4 {[%clk 0:00:02]} 39. Rxh5 {[%clk 0:00:21]}  b5 {[%clk 0:00:02]} 40. Rh4+ {[%clk 0:00:21]}  Kd3 {[%clk 0:00:02]} 41. Rhf4 {[%clk 0:00:22]}  c5 {[%clk 0:00:02]} 42. g4 {[%clk 0:00:23]}  c4 {[%clk 0:00:02]} 43. g5 {[%clk 0:00:24]}  c3 {[%clk 0:00:03]} 44. g6 {[%clk 0:00:25]}  Re2 {[%clk 0:00:03]} 45. g7 {[%clk 0:00:25]}  Re8 {[%clk 0:00:03]} 46. Rf8 {[%clk 0:00:26]}  Rxf8 {[%clk 0:00:02]} 47. gxf8=Q {[%clk 0:00:26]}  c2 {[%clk 0:00:01]} 48. Qf4 {[%clk 0:00:26]} 1-0


[Site "https://www.chess.com"]

[Event "Titled Tuesday Blitz August 08 Early 2023"]
[White "Adewumi, Tanitoluwa"]
[Black "Sanhueza, Cristian"]
[WhiteFideId "30966396"]
[BlackFideId "116815"]
[WhiteElo "2748"]
[BlackElo "2478"]
[Result "1-0"]
[Round "3"]
[TimeControl "180+1"]
[Date "2023.08.08"]
[WhiteClock "0:00:02"]
[BlackClock "0:00:00"]
[Board "102"]

1. e4 {[%clk 0:02:56]}  e5 {[%clk 0:02:59]} 2. Nf3 {[%clk 0:02:56]}  Nc6 {[%clk 0:02:59]} 3. Nc3 {[%clk 0:02:56]}  Nf6 {[%clk 0:02:59]} 4. Bb5 {[%clk 0:02:56]}  Bb4 {[%clk 0:02:59]} 5. O-O {[%clk 0:02:55]}  O-O {[%clk 0:02:59]} 6. d3 {[%clk 0:02:52]}  d6 {[%clk 0:02:59]} 7. Ne2 {[%clk 0:02:48]}  Ne7 {[%clk 0:02:57]} 8. Ng3 {[%clk 0:02:47]}  Ng6 {[%clk 0:02:58]} 9. c3 {[%clk 0:02:47]}  Ba5 {[%clk 0:02:57]} 10. a4 {[%clk 0:02:46]}  c6 {[%clk 0:02:56]} 11. Bc4 {[%clk 0:02:47]}  d5 {[%clk 0:02:50]} 12. Ba2 {[%clk 0:02:44]}  h6 {[%clk 0:02:43]} 13. b4 {[%clk 0:02:37]}  Bc7 {[%clk 0:02:42]} 14. Re1 {[%clk 0:02:36]}  Re8 {[%clk 0:02:29]} 15. Qc2 {[%clk 0:02:23]}  a5 {[%clk 0:02:24]} 16. Bd2 {[%clk 0:02:04]}  axb4 {[%clk 0:02:12]} 17. cxb4 {[%clk 0:02:05]}  Bg4 {[%clk 0:02:06]} 18. d4 {[%clk 0:01:16]}  Bxf3 {[%clk 0:01:54]} 19. gxf3 {[%clk 0:01:10]}  Nh4 {[%clk 0:01:54]} 20. exd5 {[%clk 0:00:50]}  Qd7 {[%clk 0:01:41]} 21. Kh1 {[%clk 0:00:25]}  Nxf3 {[%clk 0:01:25]} 22. Rg1 {[%clk 0:00:14]}  Qh3 {[%clk 0:00:56]} 23. Rg2 {[%clk 0:00:09]}  Ng4 {[%clk 0:00:57]} 24. Nf1 {[%clk 0:00:02]}  e4 {[%clk 0:00:46]} 25. d6 {[%clk 0:00:01]}  Bxd6 {[%clk 0:00:45]} 26. Qc4 {[%clk 0:00:01]}  Re6 {[%clk 0:00:41]} 27. d5 {[%clk 0:00:01]}  Bxh2 {[%clk 0:00:28]} 28. dxe6 {[%clk 0:00:01]}  Bf4+ {[%clk 0:00:29]} 29. Nh2 {[%clk 0:00:01]}  Ngxh2 {[%clk 0:00:24]} 30. Bxf4 {[%clk 0:00:02]}  Ng4+ {[%clk 0:00:10]} 31. Bh2 {[%clk 0:00:02]}  Nh4 {[%clk 0:00:07]} 32. exf7+ {[%clk 0:00:02]}  Kh8 {[%clk 0:00:07]} 33. Qxe4 {[%clk 0:00:02]}  Nxh2 {[%clk 0:00:00]} 34. Rxh2 {[%clk 0:00:02]} 1-0


[Site "https://www.chess.com"]

[Event "Titled Tuesday Blitz August 08 Early 2023"]
[White "favesaul"]
[Black "Kumsiashvili, Nikoloz"]
[BlackFideId "13600621"]
[WhiteElo "2476"]
[BlackElo "2745"]
[Result "0-1"]
[Round "3"]
[TimeControl "180+1"]
[Date "2023.08.08"]
[WhiteClock "0:00:00"]
[BlackClock "0:00:14"]
[Board "103"]

1. e4 {[%clk 0:03:00]}  c5 {[%clk 0:02:59]} 2. Nf3 {[%clk 0:03:00]}  e6 {[%clk 0:02:59]} 3. d4 {[%clk 0:03:01]}  cxd4 {[%clk 0:03:00]} 4. Nxd4 {[%clk 0:03:01]}  Nc6 {[%clk 0:03:00]} 5. Nc3 {[%clk 0:03:01]}  Qc7 {[%clk 0:03:01]} 6. Be2 {[%clk 0:03:01]}  a6 {[%clk 0:03:01]} 7. O-O {[%clk 0:02:58]}  Nf6 {[%clk 0:03:02]} 8. Be3 {[%clk 0:02:57]}  Be7 {[%clk 0:03:02]} 9. f4 {[%clk 0:02:56]}  d6 {[%clk 0:03:02]} 10. Kh1 {[%clk 0:02:56]}  O-O {[%clk 0:03:02]} 11. a4 {[%clk 0:02:56]}  b6 {[%clk 0:02:58]} 12. Nxc6 {[%clk 0:02:48]}  Qxc6 {[%clk 0:02:58]} 13. Bf3 {[%clk 0:02:49]}  e5 {[%clk 0:02:56]} 14. f5 {[%clk 0:02:20]}  Bb7 {[%clk 0:02:49]} 15. g4 {[%clk 0:02:13]}  Qc4 {[%clk 0:02:44]} 16. Qd3 {[%clk 0:02:08]}  Qxd3 {[%clk 0:02:13]} 17. cxd3 {[%clk 0:02:09]}  Nd7 {[%clk 0:02:14]} 18. b4 {[%clk 0:01:56]}  Rfc8 {[%clk 0:02:11]} 19. Rfc1 {[%clk 0:01:56]}  a5 {[%clk 0:01:56]} 20. bxa5 {[%clk 0:01:46]}  bxa5 {[%clk 0:01:57]} 21. Nb5 {[%clk 0:01:43]}  Nc5 {[%clk 0:01:49]} 22. Bxc5 {[%clk 0:01:40]}  dxc5 {[%clk 0:01:45]} 23. Rc4 {[%clk 0:01:35]}  Ba6 {[%clk 0:01:38]} 24. Kg2 {[%clk 0:01:30]}  Rab8 {[%clk 0:01:29]} 25. Rb1 {[%clk 0:01:30]}  Rb6 {[%clk 0:01:07]} 26. Rc2 {[%clk 0:01:16]}  Rcb8 {[%clk 0:01:05]} 27. Rcb2 {[%clk 0:01:15]}  h6 {[%clk 0:00:58]} 28. Bd1 {[%clk 0:01:13]}  Rd8 {[%clk 0:00:54]} 29. Bc2 {[%clk 0:01:08]}  Bb7 {[%clk 0:00:43]} 30. Kf2 {[%clk 0:00:57]}  c4 {[%clk 0:00:41]} 31. dxc4 {[%clk 0:00:36]}  Rd2+ {[%clk 0:00:40]} 32. Kf1 {[%clk 0:00:29]}  Rxh2 {[%clk 0:00:32]} 33. Nc3 {[%clk 0:00:25]}  Rb4 {[%clk 0:00:26]} 34. Nd5 {[%clk 0:00:24]}  Bxd5 {[%clk 0:00:21]} 35. exd5 {[%clk 0:00:15]}  Rxc2 {[%clk 0:00:20]} 36. Rxb4 {[%clk 0:00:14]}  Bxb4 {[%clk 0:00:17]} 37. Rd1 {[%clk 0:00:08]}  Rxc4 {[%clk 0:00:15]} 38. d6 {[%clk 0:00:09]}  Rd4 {[%clk 0:00:10]} 39. Rxd4 {[%clk 0:00:05]}  exd4 {[%clk 0:00:11]} 40. d7 {[%clk 0:00:06]}  Be7 {[%clk 0:00:11]} 41. Ke2 {[%clk 0:00:06]}  Bd8 {[%clk 0:00:11]} 42. Kd3 {[%clk 0:00:06]}  Kf8 {[%clk 0:00:11]} 43. Kxd4 {[%clk 0:00:07]}  Ke7 {[%clk 0:00:12]} 44. Ke4 {[%clk 0:00:03]}  Kxd7 {[%clk 0:00:12]} 45. Kd5 {[%clk 0:00:03]}  g6 {[%clk 0:00:11]} 46. fxg6 {[%clk 0:00:02]}  fxg6 {[%clk 0:00:12]} 47. Ke4 {[%clk 0:00:02]}  h5 {[%clk 0:00:12]} 48. gxh5 {[%clk 0:00:02]}  gxh5 {[%clk 0:00:13]} 49. Kf3 {[%clk 0:00:00]}  h4 {[%clk 0:00:14]} 0-1


[Site "https://www.chess.com"]

[Event "Titled Tuesday Blitz August 08 Early 2023"]
[White "Wagner, Dennis"]
[Black "Omariev, Maksim"]
[WhiteFideId "24650684"]
[BlackFideId "4193423"]
[WhiteElo "2742"]
[BlackElo "2472"]
[Result "1-0"]
[Round "3"]
[TimeControl "180+1"]
[Date "2023.08.08"]
[WhiteClock "0:00:11"]
[BlackClock "0:00:00"]
[Board "104"]

1. d4 {[%clk 0:03:00]}  h5 {[%clk 0:02:58]} 2. e4 {[%clk 0:02:59]}  h4 {[%clk 0:02:59]} 3. Nc3 {[%clk 0:02:56]}  d6 {[%clk 0:02:57]} 4. Be3 {[%clk 0:02:55]}  h3 {[%clk 0:02:57]} 5. Nxh3 {[%clk 0:02:53]}  Bxh3 {[%clk 0:02:57]} 6. gxh3 {[%clk 0:02:54]}  e5 {[%clk 0:02:57]} 7. dxe5 {[%clk 0:02:26]}  dxe5 {[%clk 0:02:58]} 8. Qf3 {[%clk 0:02:26]}  c6 {[%clk 0:02:52]} 9. Rg1 {[%clk 0:02:16]}  Nf6 {[%clk 0:02:44]} 10. Rg5 {[%clk 0:02:15]}  Qa5 {[%clk 0:02:06]} 11. O-O-O {[%clk 0:02:07]}  Nbd7 {[%clk 0:01:57]} 12. Bc4 {[%clk 0:01:58]}  g6 {[%clk 0:01:42]} 13. Rxd7 {[%clk 0:01:39]}  Nxd7 {[%clk 0:01:32]} 14. Qxf7+ {[%clk 0:01:39]}  Kd8 {[%clk 0:01:33]} 15. Rxg6 {[%clk 0:01:39]}  Kc7 {[%clk 0:01:13]} 16. Be6 {[%clk 0:01:27]}  Rd8 {[%clk 0:01:13]} 17. Bg5 {[%clk 0:01:27]}  Bb4 {[%clk 0:01:10]} 18. Rg7 {[%clk 0:01:16]}  Bxc3 {[%clk 0:01:06]} 19. Bxd8+ {[%clk 0:00:47]}  Rxd8 {[%clk 0:01:05]} 20. Bxd7 {[%clk 0:00:47]}  Bd2+ {[%clk 0:00:06]} 21. Kb1 {[%clk 0:00:45]}  Bh6 {[%clk 0:00:07]} 22. Bg4+ {[%clk 0:00:40]}  Kb6 {[%clk 0:00:04]} 23. Qxb7+ {[%clk 0:00:36]}  Kc5 {[%clk 0:00:04]} 24. Qe7+ {[%clk 0:00:28]}  Kd4 {[%clk 0:00:02]} 25. c3+ {[%clk 0:00:21]}  Kxe4 {[%clk 0:00:03]} 26. Rg6 {[%clk 0:00:13]}  Rd2 {[%clk 0:00:02]} 27. Rxh6 {[%clk 0:00:11]}  Rxb2+ {[%clk 0:00:00]} 28. Kxb2 {[%clk 0:00:11]} 1-0


[Site "https://www.chess.com"]

[Event "Titled Tuesday Blitz August 08 Early 2023"]
[White "Skvortsov, Andrei"]
[Black "Kuznetsov, Mikhail"]
[WhiteFideId "24108600"]
[BlackFideId "4117190"]
[WhiteElo "2739"]
[BlackElo "2469"]
[Result "0-1"]
[Round "3"]
[TimeControl "180+1"]
[Date "2023.08.08"]
[WhiteClock "0:00:17"]
[BlackClock "0:00:05"]
[Board "105"]

1. e4 {[%clk 0:03:00]}  c6 {[%clk 0:02:57]} 2. Nc3 {[%clk 0:02:58]}  d5 {[%clk 0:02:58]} 3. Nf3 {[%clk 0:02:58]}  a6 {[%clk 0:02:55]} 4. d4 {[%clk 0:02:52]}  Bg4 {[%clk 0:02:54]} 5. Be3 {[%clk 0:02:45]}  e6 {[%clk 0:02:53]} 6. h3 {[%clk 0:02:42]}  Bh5 {[%clk 0:02:53]} 7. g4 {[%clk 0:02:41]}  Bg6 {[%clk 0:02:52]} 8. Ne5 {[%clk 0:02:41]}  Nd7 {[%clk 0:02:48]} 9. Nxg6 {[%clk 0:02:40]}  hxg6 {[%clk 0:02:48]} 10. Bg2 {[%clk 0:02:38]}  Nb6 {[%clk 0:02:41]} 11. Bf4 {[%clk 0:02:09]}  Nf6 {[%clk 0:02:35]} 12. O-O {[%clk 0:02:06]}  Be7 {[%clk 0:02:27]} 13. e5 {[%clk 0:02:04]}  Nfd7 {[%clk 0:02:27]} 14. Ne2 {[%clk 0:02:01]}  c5 {[%clk 0:02:20]} 15. b3 {[%clk 0:01:58]}  cxd4 {[%clk 0:02:19]} 16. Nxd4 {[%clk 0:01:57]}  O-O {[%clk 0:02:17]} 17. c4 {[%clk 0:01:53]}  Nc5 {[%clk 0:02:02]} 18. b4 {[%clk 0:01:46]}  Ne4 {[%clk 0:02:00]} 19. c5 {[%clk 0:01:47]}  Nd7 {[%clk 0:01:52]} 20. f3 {[%clk 0:01:41]}  Nc3 {[%clk 0:01:46]} 21. Qd3 {[%clk 0:01:40]}  Nb5 {[%clk 0:01:01]} 22. Nxb5 {[%clk 0:01:38]}  axb5 {[%clk 0:01:02]} 23. Qxb5 {[%clk 0:01:31]}  Qc7 {[%clk 0:01:02]} 24. Rfe1 {[%clk 0:01:25]}  Ra3 {[%clk 0:00:57]} 25. Bc1 {[%clk 0:01:18]}  Rc3 {[%clk 0:00:48]} 26. a4 {[%clk 0:01:18]}  Rc4 {[%clk 0:00:35]} 27. Bb2 {[%clk 0:01:11]}  Rxb4 {[%clk 0:00:33]} 28. Qxb4 {[%clk 0:00:59]}  Bxc5+ {[%clk 0:00:32]} 29. Qd4 {[%clk 0:00:59]}  Qb6 {[%clk 0:00:21]} 30. Qxc5 {[%clk 0:00:59]}  Qxc5+ {[%clk 0:00:18]} 31. Kh2 {[%clk 0:00:59]}  Nb6 {[%clk 0:00:16]} 32. a5 {[%clk 0:00:58]}  Nc4 {[%clk 0:00:16]} 33. Bc1 {[%clk 0:00:58]}  Ra8 {[%clk 0:00:14]} 34. Bf4 {[%clk 0:00:54]}  Qd4 {[%clk 0:00:14]} 35. Bg3 {[%clk 0:00:54]}  g5 {[%clk 0:00:15]} 36. Rab1 {[%clk 0:00:50]}  Nxa5 {[%clk 0:00:14]} 37. Red1 {[%clk 0:00:49]}  Qc5 {[%clk 0:00:13]} 38. Rdc1 {[%clk 0:00:49]}  Nc4 {[%clk 0:00:12]} 39. Rc2 {[%clk 0:00:46]}  g6 {[%clk 0:00:13]} 40. Rxb7 {[%clk 0:00:44]}  Kg7 {[%clk 0:00:11]} 41. Rb1 {[%clk 0:00:43]}  Qd4 {[%clk 0:00:10]} 42. Re1 {[%clk 0:00:42]}  Ra3 {[%clk 0:00:08]} 43. Bf2 {[%clk 0:00:41]}  Qf4+ {[%clk 0:00:08]} 44. Bg3 {[%clk 0:00:40]}  Qd4 {[%clk 0:00:09]} 45. Bf2 {[%clk 0:00:36]}  Qd3 {[%clk 0:00:09]} 46. Rce2 {[%clk 0:00:35]}  Qb3 {[%clk 0:00:09]} 47. h4 {[%clk 0:00:33]}  Ra2 {[%clk 0:00:08]} 48. hxg5 {[%clk 0:00:32]}  Rxe2 {[%clk 0:00:06]} 49. Rxe2 {[%clk 0:00:33]}  Qd3 {[%clk 0:00:06]} 50. Re1 {[%clk 0:00:33]}  Nd2 {[%clk 0:00:05]} 51. Re3 {[%clk 0:00:24]}  Nf1+ {[%clk 0:00:05]} 52. Bxf1 {[%clk 0:00:24]}  Qxf1 {[%clk 0:00:06]} 53. Kg3 {[%clk 0:00:22]}  d4 {[%clk 0:00:05]} 54. Re4 {[%clk 0:00:20]}  d3 {[%clk 0:00:05]} 55. Be3 {[%clk 0:00:20]}  Qe1+ {[%clk 0:00:04]} 56. Kf4 {[%clk 0:00:20]}  d2 {[%clk 0:00:04]} 57. Bxd2 {[%clk 0:00:20]}  Qxd2+ {[%clk 0:00:05]} 58. Kg3 {[%clk 0:00:21]}  Qd5 {[%clk 0:00:05]} 59. Re3 {[%clk 0:00:21]}  Qd2 {[%clk 0:00:05]} 60. Kf4 {[%clk 0:00:20]}  Qc1 {[%clk 0:00:05]} 61. Ke4 {[%clk 0:00:17]}  Qc4# {[%clk 0:00:05]} 0-1


[Site "https://www.chess.com"]

[Event "Titled Tuesday Blitz August 08 Early 2023"]
[White "Djordjevic, Vuk"]
[Black "arenal72"]
[WhiteFideId "902098"]
[WhiteElo "2723"]
[BlackElo "2465"]
[Result "1-0"]
[Round "3"]
[TimeControl "180+1"]
[Date "2023.08.08"]
[WhiteClock "0:00:04"]
[BlackClock "0:00:19"]
[Board "110"]

1. d4 {[%clk 0:03:00]}  c5 {[%clk 0:02:53]} 2. d5 {[%clk 0:03:00]}  Nf6 {[%clk 0:02:52]} 3. c4 {[%clk 0:03:00]}  g6 {[%clk 0:02:49]} 4. Nc3 {[%clk 0:02:59]}  Bg7 {[%clk 0:02:50]} 5. e4 {[%clk 0:03:00]}  d6 {[%clk 0:02:50]} 6. Bd3 {[%clk 0:03:00]}  e6 {[%clk 0:02:47]} 7. Nge2 {[%clk 0:02:59]}  Nbd7 {[%clk 0:02:46]} 8. Bf4 {[%clk 0:02:55]}  e5 {[%clk 0:02:42]} 9. Be3 {[%clk 0:02:51]}  a6 {[%clk 0:02:41]} 10. f3 {[%clk 0:02:49]}  Rb8 {[%clk 0:02:29]} 11. h4 {[%clk 0:02:46]}  Qa5 {[%clk 0:02:13]} 12. Bd2 {[%clk 0:02:34]}  Qd8 {[%clk 0:02:08]} 13. g4 {[%clk 0:02:18]}  h5 {[%clk 0:02:07]} 14. Ng3 {[%clk 0:02:16]}  Nf8 {[%clk 0:01:53]} 15. Be2 {[%clk 0:01:25]}  Bd7 {[%clk 0:01:43]} 16. g5 {[%clk 0:01:17]}  Ng8 {[%clk 0:01:37]} 17. f4 {[%clk 0:01:16]}  exf4 {[%clk 0:01:29]} 18. Bxf4 {[%clk 0:01:15]}  Be5 {[%clk 0:01:27]} 19. Bxe5 {[%clk 0:00:59]}  dxe5 {[%clk 0:01:28]} 20. Qd2 {[%clk 0:00:55]}  Ne7 {[%clk 0:01:21]} 21. d6 {[%clk 0:00:31]}  Nc6 {[%clk 0:01:19]} 22. Nd5 {[%clk 0:00:31]}  Ne6 {[%clk 0:01:17]} 23. Nf6+ {[%clk 0:00:19]}  Kf8 {[%clk 0:01:16]} 24. Qd5 {[%clk 0:00:19]}  b6 {[%clk 0:01:08]} 25. O-O {[%clk 0:00:18]}  Nf4 {[%clk 0:01:06]} 26. Rxf4 {[%clk 0:00:06]}  exf4 {[%clk 0:01:07]} 27. Rf1 {[%clk 0:00:06]}  Nb4 {[%clk 0:00:53]} 28. Qe5 {[%clk 0:00:04]}  Nc6 {[%clk 0:00:46]} 29. Nxd7+ {[%clk 0:00:04]}  Kg8 {[%clk 0:00:44]} 30. Nf6+ {[%clk 0:00:04]}  Kf8 {[%clk 0:00:42]} 31. Qxf4 {[%clk 0:00:03]}  Rb7 {[%clk 0:00:40]} 32. e5 {[%clk 0:00:03]}  Nd4 {[%clk 0:00:40]} 33. Bf3 {[%clk 0:00:03]}  Ra7 {[%clk 0:00:36]} 34. Bd5 {[%clk 0:00:03]}  Kg7 {[%clk 0:00:36]} 35. Kg2 {[%clk 0:00:03]}  Rf8 {[%clk 0:00:35]} 36. Nfxh5+ {[%clk 0:00:02]}  gxh5 {[%clk 0:00:35]} 37. Nxh5+ {[%clk 0:00:03]}  Kg8 {[%clk 0:00:31]} 38. Nf6+ {[%clk 0:00:02]}  Kg7 {[%clk 0:00:32]} 39. h5 {[%clk 0:00:02]}  b5 {[%clk 0:00:29]} 40. h6+ {[%clk 0:00:03]}  Kh8 {[%clk 0:00:28]} 41. Qe4 {[%clk 0:00:03]}  Qxf6 {[%clk 0:00:25]} 42. gxf6 {[%clk 0:00:03]}  Rg8+ {[%clk 0:00:25]} 43. Kh3 {[%clk 0:00:04]}  Rg6 {[%clk 0:00:23]} 44. Qxg6 {[%clk 0:00:03]}  fxg6 {[%clk 0:00:19]} 45. f7 {[%clk 0:00:04]} 1-0


[Site "https://www.chess.com"]

[Event "Titled Tuesday Blitz August 08 Early 2023"]
[White "slidingknight2775"]
[Black "Gubajdullin, Alexei"]
[BlackFideId "4141202"]
[WhiteElo "2464"]
[BlackElo "2689"]
[Result "0-1"]
[Round "3"]
[TimeControl "180+1"]
[Date "2023.08.08"]
[WhiteClock "0:00:09"]
[BlackClock "0:00:11"]
[Board "112"]

1. d4 {[%clk 0:03:00]}  Nf6 {[%clk 0:02:59]} 2. Nf3 {[%clk 0:03:01]}  g6 {[%clk 0:02:59]} 3. g3 {[%clk 0:03:01]}  Bg7 {[%clk 0:02:59]} 4. Bg2 {[%clk 0:03:01]}  O-O {[%clk 0:02:59]} 5. O-O {[%clk 0:03:01]}  d6 {[%clk 0:02:59]} 6. a4 {[%clk 0:03:01]}  a5 {[%clk 0:02:56]} 7. c3 {[%clk 0:02:53]}  b6 {[%clk 0:02:49]} 8. Nfd2 {[%clk 0:02:40]}  Ra7 {[%clk 0:02:47]} 9. e4 {[%clk 0:02:40]}  e5 {[%clk 0:02:46]} 10. Na3 {[%clk 0:02:37]}  Bb7 {[%clk 0:02:37]} 11. Re1 {[%clk 0:02:33]}  Qe7 {[%clk 0:02:35]} 12. Qc2 {[%clk 0:02:17]}  Na6 {[%clk 0:02:33]} 13. Nb5 {[%clk 0:02:15]}  Raa8 {[%clk 0:02:32]} 14. h3 {[%clk 0:02:06]}  Rab8 {[%clk 0:02:29]} 15. b3 {[%clk 0:01:56]}  exd4 {[%clk 0:02:26]} 16. Nxd4 {[%clk 0:01:39]}  Nd7 {[%clk 0:02:23]} 17. Bb2 {[%clk 0:01:36]}  Rfe8 {[%clk 0:02:18]} 18. Kh2 {[%clk 0:01:22]}  h5 {[%clk 0:02:17]} 19. f4 {[%clk 0:00:59]}  h4 {[%clk 0:02:17]} 20. g4 {[%clk 0:01:00]}  c5 {[%clk 0:02:17]} 21. N4f3 {[%clk 0:00:56]}  Qf6 {[%clk 0:02:14]} 22. f5 {[%clk 0:00:39]}  d5 {[%clk 0:01:50]} 23. Kh1 {[%clk 0:00:22]}  gxf5 {[%clk 0:01:28]} 24. exf5 {[%clk 0:00:22]}  Nb4 {[%clk 0:01:15]} 25. Qb1 {[%clk 0:00:15]}  Ba6 {[%clk 0:01:14]} 26. g5 {[%clk 0:00:13]}  Rxe1+ {[%clk 0:01:05]} 27. Qxe1 {[%clk 0:00:14]}  Qxf5 {[%clk 0:01:01]} 28. cxb4 {[%clk 0:00:10]}  Bxb2 {[%clk 0:01:00]} 29. Rb1 {[%clk 0:00:11]}  Bc3 {[%clk 0:00:59]} 30. b5 {[%clk 0:00:10]}  Bb7 {[%clk 0:00:59]} 31. Qxh4 {[%clk 0:00:10]}  d4 {[%clk 0:00:56]} 32. Rf1 {[%clk 0:00:10]}  Re8 {[%clk 0:00:39]} 33. Nc4 {[%clk 0:00:05]}  Re4 {[%clk 0:00:27]} 34. Qg3 {[%clk 0:00:05]}  Bd5 {[%clk 0:00:19]} 35. Kh2 {[%clk 0:00:05]}  d3 {[%clk 0:00:18]} 36. Nh4 {[%clk 0:00:03]}  Qe6 {[%clk 0:00:18]} 37. Bxe4 {[%clk 0:00:03]}  Bxc4 {[%clk 0:00:17]} 38. Bf5 {[%clk 0:00:02]}  Be5 {[%clk 0:00:14]} 39. Bxe6 {[%clk 0:00:02]}  Bxe6 {[%clk 0:00:15]} 40. Rf4 {[%clk 0:00:01]}  d2 {[%clk 0:00:15]} 41. Nf3 {[%clk 0:00:02]}  Bxf4 {[%clk 0:00:14]} 42. Qxf4 {[%clk 0:00:03]}  d1=Q {[%clk 0:00:14]} 43. g6 {[%clk 0:00:03]}  Qc2+ {[%clk 0:00:13]} 44. Kg3 {[%clk 0:00:04]}  Qxg6+ {[%clk 0:00:13]} 45. Kf2 {[%clk 0:00:04]}  Nf6 {[%clk 0:00:12]} 46. Ng5 {[%clk 0:00:04]}  Kg7 {[%clk 0:00:11]} 47. Nxe6+ {[%clk 0:00:04]}  fxe6 {[%clk 0:00:12]} 48. Qc7+ {[%clk 0:00:05]}  Qf7 {[%clk 0:00:12]} 49. Qxb6 {[%clk 0:00:05]}  Nd5+ {[%clk 0:00:11]} 50. Ke2 {[%clk 0:00:05]}  Nxb6 {[%clk 0:00:11]} 51. Kd3 {[%clk 0:00:06]}  Qf5+ {[%clk 0:00:11]} 52. Kc3 {[%clk 0:00:06]}  Qe5+ {[%clk 0:00:11]} 53. Kc2 {[%clk 0:00:07]}  Nd5 {[%clk 0:00:11]} 54. Kb1 {[%clk 0:00:08]}  Qc3 {[%clk 0:00:11]} 55. Ka2 {[%clk 0:00:08]}  Qc2+ {[%clk 0:00:11]} 56. Ka3 {[%clk 0:00:09]}  Nb4 {[%clk 0:00:11]} 57. b6 {[%clk 0:00:09]}  Qa2# {[%clk 0:00:11]} 0-1


[Site "https://www.chess.com"]

[Event "Titled Tuesday Blitz August 08 Early 2023"]
[White "Lima, Kleyton Alcantara"]
[Black "Skliarov, Viktor"]
[WhiteFideId "22718397"]
[BlackFideId "14106736"]
[WhiteElo "2461"]
[BlackElo "2682"]
[Result "0-1"]
[Round "3"]
[TimeControl "180+1"]
[Date "2023.08.08"]
[WhiteClock "0:00:57"]
[BlackClock "0:01:04"]
[Board "113"]

1. e4 {[%clk 0:03:00]}  c5 {[%clk 0:03:00]} 2. Nf3 {[%clk 0:03:01]}  Nc6 {[%clk 0:03:00]} 3. d4 {[%clk 0:03:02]}  cxd4 {[%clk 0:03:01]} 4. Nxd4 {[%clk 0:03:02]}  Nf6 {[%clk 0:03:02]} 5. Nc3 {[%clk 0:03:02]}  e5 {[%clk 0:03:03]} 6. Ndb5 {[%clk 0:03:03]}  d6 {[%clk 0:03:03]} 7. Bg5 {[%clk 0:03:03]}  a6 {[%clk 0:03:03]} 8. Na3 {[%clk 0:03:04]}  b5 {[%clk 0:03:04]} 9. Nab1 {[%clk 0:03:04]}  Be7 {[%clk 0:02:47]} 10. Bxf6 {[%clk 0:03:04]}  Bxf6 {[%clk 0:02:47]} 11. a4 {[%clk 0:03:04]}  b4 {[%clk 0:02:46]} 12. Nd5 {[%clk 0:03:05]}  O-O {[%clk 0:02:46]} 13. Bc4 {[%clk 0:03:05]}  a5 {[%clk 0:02:45]} 14. O-O {[%clk 0:02:58]}  Be6 {[%clk 0:02:45]} 15. Qd3 {[%clk 0:02:51]}  Rc8 {[%clk 0:02:42]} 16. Ba6 {[%clk 0:02:25]}  Rb8 {[%clk 0:02:33]} 17. Bb5 {[%clk 0:02:24]}  Nd4 {[%clk 0:02:29]} 18. Nxf6+ {[%clk 0:02:07]}  Qxf6 {[%clk 0:02:24]} 19. Nd2 {[%clk 0:02:08]}  Rfc8 {[%clk 0:01:44]} 20. Rfc1 {[%clk 0:01:48]}  Rc5 {[%clk 0:01:37]} 21. c3 {[%clk 0:01:42]}  Nxb5 {[%clk 0:01:23]} 22. axb5 {[%clk 0:01:41]}  bxc3 {[%clk 0:01:24]} 23. Rxc3 {[%clk 0:01:34]}  Rcxb5 {[%clk 0:01:22]} 24. Qxd6 {[%clk 0:01:33]}  Rxb2 {[%clk 0:01:12]} 25. h3 {[%clk 0:01:13]}  Rd8 {[%clk 0:01:06]} 26. Qb6 {[%clk 0:00:57]}  Rxb6 {[%clk 0:01:04]} 0-1


[Site "https://www.chess.com"]